bitfinex/quotes_ETHUSD_20260109
["timestamp","ask_amount","ask_price","bid_price","bid_amount"]
[1767980844204,0.001,3110.4,3109.7,0.73624511]
[1767980844425,0.94503808,3110.4,3109.7,0.73624511]
[1767980844732,0.94503808,3110.4,3109.7,0.253]
[1767980845731,4.16010575,3110.4,3109.7,0.253]
[1767980846999,0.94503808,3110.4,3109.7,0.253]
[1767980847298,0.001,3110.4,3109.7,0.253]
[1767980847502,3.21603708,3110.4,3109.7,1.68790376]
[1767980847728,0.001,3110.4,3109.7,1.68790376]
[1767980847930,0.001,3110.4,3109.7,1.18354887]
[1767980848928,0.002,3110.1,3109.7,1.18354887]
[1767980849231,0.002,3110.1,3109.7,0.93054887]
[1767980849430,0.002,3110.1,3109.7,1.18354887]
[1767980849733,0.002,3110.1,3109.7,0.253]
[1767980850700,0.002,3110.1,3109.7,3.46873926]
[1767980851011,0.002,3110.1,3109.8,0.93054887]
[1767980851219,0.002,3110.1,3109.7,0.69293407]
[1767980851525,0.002,3110.1,3109.7,0.253]
[1767980853332,0.002,3110.1,3109.7,3.4687282]
[1767980853733,0.002,3110.1,3109.7,0.253]
[1767980855651,0.002,3110.1,3109.8,0.96576899]
[1767980856147,0.001,3110.4,3109.8,4.18140857]
[1767980856321,0.001,3110.4,3109.8,4.94643104]
[1767980856521,0.001,3110.4,3109.8,1.73079146]
[1767980856818,0.001,3110.4,3109.7,0.253]
[1767980857017,0.001,3110.4,3109.8,3.2155897]
[1767980857221,0.001,3110.4,3109.7,3.46872351]
[1767980857424,0.001,3110.4,3109.7,4.4344925]
[1767980857630,0.001,3110.4,3109.9,0.96576899]
[1767980857836,0.001,3110.4,3110.1,0.96576899]
[1767980858037,0.001,3110.4,3110.2,3.46814194]
[1767980858401,0.001,3110.4,3110.2,4.43391093]
[1767980858602,0.001,3110.4,3110.2,7.64913824]
[1767980858802,0.002,3110.7,3110.2,6.68417093]
[1767980859102,0.002,3111.0,3110.3,0.66841709]
[1767980859317,0.94920724,3111.0,3110.3,0.66841709]
[1767980860323,0.94920724,3111.0,3110.4,3.21502057]
[1767980860743,0.94920724,3111.0,3110.4,6.43004114]
[1767980861116,0.94920724,3111.0,3110.4,3.21502057]
[1767980861323,0.94920724,3111.0,3110.5,0.38834377]
[1767980861639,0.002,3111.0,3110.6,0.96576899]
[1767980862213,0.002,3111.0,3110.8,0.96576899]
[1767980862447,0.94720724,3111.5,3110.7,6.42942102]
[1767980863035,0.0008016,3111.8,3110.9,0.96576899]
[1767980863241,0.94920724,3112.3,3111.4,0.00080168]
[1767980863407,0.94920724,3112.3,3111.6,0.96576899]
[1767980863408,0.002,3112.3,3111.6,0.96576899]
[1767980863914,0.94720724,3112.2,3111.4,0.00080168]
[1767980864135,0.94720724,3112.1,3111.5,0.253]
[1767980864329,3.6293974,3112.2,3111.5,0.253]
[1767980864530,3.6293974,3112.2,3111.4,0.00080168]
[1767980864531,7.78977553,3112.2,3111.4,0.00080168]
[1767980864742,3.6293974,3112.2,3111.4,0.00080168]
[1767980865048,0.45786046,3112.1,3111.4,0.00080168]
[1767980866013,0.45786046,3112.1,3111.4,3.21478404]
[1767980866443,0.45786046,3112.1,3111.4,0.00080168]
[1767980866646,0.002,3112.3,3111.4,0.96657067]
[1767980867009,0.94720724,3112.2,3111.4,0.00080168]
[1767980868321,0.002,3112.3,3111.4,0.96657067]
[1767980869222,0.002,3112.3,3111.5,0.98506753]
[1767980870454,0.002,3112.3,3111.7,0.98506753]
[1767980870613,0.002,3112.3,3111.9,0.98506753]
[1767980870811,0.002,3112.3,3111.8,0.74126289]
[1767980871045,0.002,3112.3,3111.6,0.253]
[1767980871453,0.0008016,3112.7,3111.7,0.98506753]
[1767980871820,0.91507744,3112.7,3111.7,0.98506753]
[1767980872053,0.91507744,3112.7,3111.6,0.253]
[1767980872648,3.21274818,3112.6,3111.7,3.21367741]
[1767980872853,3.21274818,3112.6,3111.7,0.6680492]
[1767980872854,7.3397722,3112.6,3111.7,0.6680492]
[1767980873051,4.12702402,3112.6,3111.7,0.6680492]
[1767980873250,0.91427584,3112.6,3111.7,0.6680492]
[1767980873440,0.0008016,3112.7,3111.8,0.98506753]
[1767980873647,0.0008016,3112.7,3111.9,0.16531167]
[1767980873951,0.0008016,3112.7,3111.9,1.1503792]
[1767980875058,0.0008016,3112.7,3112.1,0.98506753]
[1767980875242,0.0008016,3112.7,3111.9,1.1503792]
[1767980875449,0.0008016,3112.7,3112.2,0.253]
[1767980875756,0.91507744,3112.7,3112.0,0.253]
[1767980875935,0.0008016,3112.7,3112.0,0.253]
[1767980876157,0.0008016,3112.7,3112.0,1.23806753]
[1767980876337,0.91507744,3112.7,3112.0,0.253]
[1767980876532,0.91507744,3112.7,3112.0,0.92099017]
[1767980877154,0.002,3112.4,3112.0,4.13433629]
[1767980877472,0.002,3112.4,3112.0,7.34770389]
[1767980878447,0.00081607,3112.8,3112.0,7.34770389]
[1767980878448,0.00081607,3112.8,3112.3,0.00080168]
[1767980881366,4.12692081,3112.7,3112.0,0.253]
[1767980881573,8.07438953,3112.7,3111.9,0.253]
[1767980881775,4.12772249,3112.7,3111.9,3.46642952]
[1767980882071,0.00080168,3112.7,3112.1,0.98506753]
[1767980882276,0.00080168,3112.7,3112.1,0.9962603]
[1767980882442,0.91507752,3112.7,3112.1,0.01119277]
[1767980883037,0.91507752,3112.7,3112.0,0.01121026]
[1767980883237,0.91507752,3112.7,3112.0,3.22457786]
[1767980883641,4.12775344,3112.7,3111.9,0.253]
[1767980883842,0.90517887,3112.6,3111.9,3.46645871]
[1767980884138,0.00080168,3112.7,3112.0,3.21336544]
[1767980885260,0.00080168,3112.7,3112.0,3.88135237]
[1767980885463,0.00080168,3112.7,3112.1,0.93072392]
[1767980886774,0.00080168,3112.7,3112.3,0.93072392]
[1767980887386,0.00080168,3112.7,3112.5,0.93072392]
[1767980888469,0.90517887,3113.5,3112.4,6.42672614]
[1767980888768,0.90517887,3113.4,3112.5,0.64275279]
[1767980889080,0.000802,3113.7,3112.6,0.93072392]
[1767980889253,0.000802,3113.7,3112.8,0.93072392]
[1767980889458,0.000802,3113.7,3112.9,0.93072392]
[1767980889789,0.000802,3113.7,3113.0,0.93072392]
[1767980891577,0.000802,3113.7,3113.2,0.93072392]
[1767980891779,0.002,3114.0,3113.4,0.93072392]
[1767980891977,0.00080136,3114.3,3113.4,0.93072392]
[1767980892178,3.21125797,3114.9,3114.1,0.93072392]
[1767980892381,7.06386878,3114.9,3114.1,0.93072392]
[1767980892880,11.17950402,3114.9,3113.9,0.00080144]
[1767980893065,0.00080144,3114.3,3113.5,0.253]
[1767980893382,0.00080144,3114.3,3113.3,0.931526]
[1767980893888,0.00080144,3114.3,3113.3,0.00080208]
[1767980893889,0.90598031,3114.3,3113.3,0.00080208]
[1767980894183,1.9590443,3114.2,3113.3,0.00080208]
[1767980894667,1.05386543,3114.2,3113.4,0.93072392]
[1767980894873,0.00080144,3114.3,3113.5,0.93072392]
[1767980895253,0.00080144,3114.3,3113.6,4.14243348]
[1767980895581,0.00080144,3114.3,3113.6,0.93072392]
[1767980895752,0.00080144,3114.3,3113.7,1.18372392]
[1767980895948,0.00080144,3114.3,3113.7,1.62326577]
[1767980896161,0.00080144,3114.3,3113.7,1.6052972]
[1767980896849,0.00080144,3114.3,3113.7,0.67457328]
[1767980897259,0.00080144,3114.3,3113.8,0.93072392]
[1767980897446,0.00080144,3114.3,3113.9,0.93072392]
[1767980897653,0.00080144,3114.3,3114.0,0.93072392]
[1767980897981,0.0008016,3114.9,3114.3,0.93072392]
[1767980898182,0.0008016,3114.9,3114.4,0.93072392]
[1767980898348,0.0008016,3114.9,3114.0,0.93072392]
[1767980898549,0.90598047,3114.9,3113.9,0.00080152]
[1767980898760,0.90517887,3114.6,3113.3,0.00080208]
[1767980898955,0.00080208,3113.7,3112.7,0.93072392]
[1767980899776,0.64238222,3113.6,3112.6,0.252]
[1767980900262,0.00080208,3113.7,3112.8,0.93072392]
[1767980901202,0.00080208,3113.7,3112.5,4.14356015]
[1767980901499,0.00080208,3113.7,3112.8,0.93072392]
[1767980903606,0.00080208,3113.7,3112.8,1.18272392]
[1767980903819,0.00080208,3113.7,3112.8,4.39523801]
[1767980904118,0.00080208,3113.7,3112.8,1.18272392]
[1767980904268,0.00080208,3113.7,3112.9,0.93072392]
[1767980906969,0.00080208,3113.7,3113.0,0.93072392]
[1767980907363,0.00080208,3113.7,3112.7,0.93072392]
[1767980907593,0.00080208,3113.7,3112.7,4.39536804]
[1767980908103,0.00080208,3113.7,3112.7,1.18272392]
[1767980908274,0.64238222,3113.6,3112.7,1.18272392]
[1767980908604,0.64238222,3113.6,3112.7,0.93072392]
[1767980908804,0.90517887,3113.5,3112.4,1.1835408]
[1767980909309,0.90517887,3113.5,3112.4,0.00081688]
[1767980910099,0.64238222,3113.6,3112.4,0.9315408]
[1767980910298,3.21174608,3113.6,3112.5,0.93072392]
[1767980910675,0.25280208,3113.7,3112.5,0.93072392]
[1767980911074,0.00080208,3113.7,3112.5,0.93072392]
[1767980911276,0.00080152,3114.3,3113.3,0.93072392]
[1767980911608,0.00080152,3114.3,3113.4,0.93072392]
[1767980912177,0.00080152,3114.3,3113.6,0.93072392]
[1767980912517,0.00080152,3114.3,3113.8,0.93072392]
[1767980914588,0.002,3114.6,3113.9,0.96542503]
[1767980914778,4.17608334,3115.7,3114.6,0.96462343]
[1767980914982,7.38563496,3115.7,3114.6,0.96462343]
[1767980915294,0.76384371,3115.6,3114.6,0.96462343]
[1767980915884,0.002,3115.0,3114.6,0.96462343]
[1767980917009,0.002,3115.0,3114.5,0.00080168]
[1767980917512,0.002,3115.0,3114.5,0.96542511]
[1767980917711,0.002,3115.0,3114.6,0.96462343]
[1767980918292,0.00080216,3115.8,3114.9,0.96462343]
[1767980918691,3.21031926,3115.8,3114.9,0.96462343]
[1767980918886,0.6420561,3115.7,3114.9,0.96462343]
[1767980920386,3.20965464,3115.6,3114.9,0.96462343]
[1767980920619,0.00080216,3115.8,3114.9,3.21036567]
[1767980920818,0.00080216,3115.8,3115.0,0.96462343]
[1767980921614,3.21026116,3115.8,3115.0,0.96462343]
[1767980921786,0.00080216,3115.8,3115.0,0.96462343]
[1767980921986,0.00080216,3115.8,3115.1,0.96462343]
[1767980922508,0.00080216,3115.8,3115.2,0.96462343]
[1767980923212,0.00080216,3115.8,3115.0,0.7637365]
[1767980923213,0.00080216,3115.8,3115.0,0.252]
[1767980923406,0.00080216,3115.8,3115.1,0.252]
[1767980923996,0.00080216,3115.8,3115.1,3.46215053]
[1767980924401,0.00080216,3115.8,3115.1,4.42677396]
[1767980924891,0.00080216,3115.8,3115.2,0.96462343]
[1767980926899,0.00080216,3115.8,3115.1,0.76371318]
[1767980927145,0.00080216,3115.8,3115.0,3.21024565]
[1767980927318,0.00080216,3115.8,3115.1,0.252]
[1767980927636,0.96733388,3115.8,3114.5,0.96542511]
[1767980927848,0.96733388,3115.8,3114.5,0.00080168]
[1767980928013,0.96733388,3115.8,3114.8,0.001]
[1767980928218,0.96853172,3115.5,3114.8,0.001]
[1767980928419,0.252,3115.4,3114.8,0.001]
[1767980928913,3.20996372,3115.3,3114.8,0.001]
[1767980929127,3.46189571,3115.4,3114.8,0.001]
[1767980929322,7.33916336,3115.4,3114.8,0.001]
[1767980929524,4.12926765,3115.4,3114.8,0.001]
[1767980929906,7.33916336,3115.4,3114.8,0.001]
[1767980930133,4.12926765,3115.4,3114.8,0.001]
[1767980930731,3.87726765,3115.4,3114.8,0.001]
[1767980931335,0.66737194,3115.4,3114.8,0.001]
[1767980931537,0.002,3115.5,3114.8,0.001]
[1767980931736,3.21177059,3115.5,3114.8,0.001]
[1767980934049,3.21177059,3115.5,3114.6,4.11843309]
[1767980934745,0.002,3115.5,3114.7,0.99864944]
[1767980935049,3.55817312,3115.5,3114.7,0.99864944]
[1767980935230,6.76796918,3115.5,3114.7,0.99864944]
[1767980935429,3.55817312,3115.5,3114.7,0.99864944]
[1767980935630,3.55817312,3115.5,3114.7,4.20921413]
[1767980935817,3.55817312,3115.5,3114.7,0.99864944]
[1767980936014,0.70199218,3115.4,3114.7,0.99864944]
[1767980937414,0.70199218,3115.4,3114.7,4.2092297]
[1767980937617,0.34837706,3115.5,3114.7,4.2092297]
[1767980937854,3.55813508,3115.5,3114.7,0.99864944]
[1767980938842,3.55814418,3115.5,3114.7,4.20922616]
[1767980939034,3.55814747,3115.5,3114.7,0.99864944]
[1767980939229,0.96461412,3115.4,3114.5,0.00080168]
[1767980939637,1.76305626,3115.4,3114.5,0.00080168]
[1767980940758,0.96461412,3115.3,3115.0,0.001]
[1767980941079,0.002,3115.2,3115.0,0.001]
[1767980942286,0.001,3115.0,3114.5,3.21158197]
[1767980942471,0.001,3115.0,3114.5,4.21023141]
[1767980942648,0.001,3115.0,3114.5,7.84204279]
[1767980942981,0.001,3115.0,3114.5,4.63125455]
[1767980943282,0.001,3115.0,3114.5,7.84204279]
[1767980944447,0.001,3115.0,3114.6,0.91529443]
[1767980944648,0.002,3115.2,3114.8,0.91529443]
[1767980945472,0.002,3115.5,3114.8,0.91529443]
[1767980945988,0.002,3115.5,3115.0,0.91529443]
[1767980946160,0.002,3115.5,3115.1,1.64889906]
[1767980948913,0.002,3115.5,3115.1,0.73360463]
[1767980949117,0.002,3115.5,3114.9,0.252]
[1767980949411,0.91220195,3115.5,3114.9,0.252]
[1767980950214,0.002,3115.5,3114.9,0.252]
[1767980950511,0.002,3115.5,3115.1,6.42032859]
[1767980950689,0.002,3115.5,3115.1,3.21015878]
[1767980950897,0.002,3115.5,3115.2,3.94363463]
[1767980951215,0.002,3115.5,3115.2,0.73356996]
[1767980951582,0.002,3115.5,3115.2,1.64886439]
[1767980951876,0.00280216,3115.8,3115.2,4.85891921]
[1767980952076,0.00280216,3115.8,3115.3,0.91529443]
[1767980952314,0.00280216,3115.8,3115.3,1.72219303]
[1767980952905,0.002,3115.5,3115.4,4.37715512]
[1767980953110,0.00280216,3115.8,3115.5,0.91529443]
[1767980954986,0.00280216,3115.8,3115.6,3.20965464]
[1767980955431,0.002,3116.2,3115.6,3.20965464]
[1767980955629,0.002,3116.2,3115.7,0.412577]
[1767980955828,0.002,3116.2,3115.5,0.91611537]
[1767980956021,0.002,3116.2,3115.5,4.12577364]
[1767980957336,0.002,3116.2,3115.5,0.00082094]
[1767980957646,0.91220195,3116.2,3115.5,0.25282094]
[1767980957817,0.91220195,3116.2,3115.5,0.00082094]
[1767980959131,0.002,3116.2,3115.5,0.00082094]
[1767980959432,0.002,3116.2,3115.5,0.32196697]
[1767980960010,0.002,3116.2,3115.5,0.00082094]
[1767980960733,0.91220195,3116.2,3115.5,0.00082094]
[1767980961299,3.20913962,3116.1,3115.5,0.00082094]
[1767980961630,0.91020195,3116.0,3115.5,0.00082094]
[1767980963699,4.11946564,3116.0,3115.5,0.00082094]
[1767980964409,4.12128847,3116.2,3115.5,0.00082094]
[1767980964713,4.12128847,3116.2,3115.8,0.001]
[1767980965123,0.002,3116.2,3115.8,0.001]
[1767980965631,0.00280208,3116.8,3116.1,0.91529443]
[1767980965824,0.91020195,3116.7,3116.1,0.67354971]
[1767980966019,0.91020195,3116.7,3115.9,0.252]
[1767980967038,0.91020195,3116.7,3115.8,0.001]
[1767980967039,0.91020195,3116.7,3115.8,0.253]
[1767980967332,0.91020195,3116.7,3115.8,0.001]
[1767980967533,3.20862478,3116.6,3115.8,0.001]
[1767980969256,4.11876588,3116.7,3115.8,0.001]
[1767980969426,7.73948661,3116.7,3115.8,0.001]
[1767980970496,0.91020195,3116.6,3115.8,0.001]
[1767980971886,0.91020195,3116.4,3115.8,0.001]
[1767980974601,0.002,3117.1,3116.6,0.94142351]
[1767980974900,0.00080224,3117.4,3116.8,0.94142351]
[1767980975064,0.00080224,3117.4,3116.9,0.252]
[1767980975467,0.00080224,3117.4,3117.0,0.94142351]
[1767980976295,0.90100886,3118.0,3117.0,3.46100909]
[1767980976597,0.90100886,3118.0,3117.1,1.38166677]
[1767980976598,0.00080152,3118.0,3117.1,1.38166677]
[1767980976905,0.00080152,3118.0,3117.2,0.94142351]
[1767980977399,0.00080152,3118.0,3117.1,1.38166677]
[1767980979409,0.00080152,3118.0,3117.1,0.94142351]
[1767980980318,0.00080152,3118.0,3117.2,0.94142351]
[1767980984796,4.10752768,3117.9,3117.1,0.69224837]
[1767980985002,0.00080152,3118.0,3117.2,0.94142351]
[1767980985309,6.41525109,3118.0,3117.2,0.94142351]
[1767980985977,3.20798561,3118.0,3117.2,0.94142351]
[1767980986177,6.41525109,3118.0,3117.2,0.94142351]
[1767980986773,0.00080152,3118.0,3117.2,0.94142351]
[1767980988415,0.00080152,3118.0,3117.3,0.97610879]
[1767980988712,0.0131337,3118.4,3117.8,0.97610879]
[1767980989086,0.0131337,3118.4,3117.8,4.18342248]
[1767980989323,0.0131337,3118.4,3117.8,0.97610879]
[1767980989617,0.002,3118.0,3117.8,0.97610879]
[1767980990313,0.002,3118.0,3117.6,0.2528016]
[1767980990887,0.002,3118.0,3117.7,0.97610879]
[1767980991914,0.002,3118.0,3117.4,0.001]
[1767980991915,0.0028016,3118.0,3117.4,0.001]
[1767980992722,6.41716978,3118.0,3117.4,0.001]
[1767980992916,0.7414556,3117.9,3117.4,0.001]
[1767980993418,0.7414556,3117.9,3117.0,0.25280232]
[1767980994414,0.99738623,3117.8,3117.0,0.00080232]
[1767980994614,0.7414556,3117.9,3117.0,0.00080232]
[1767980994782,6.4149854,3117.7,3117.0,0.00080232]
[1767980995299,0.0028016,3118.0,3117.2,0.97610879]
[1767980996810,0.0028016,3118.0,3117.4,0.97610879]
[1767980997118,0.0028016,3118.0,3117.2,0.252]
[1767980997285,0.99738623,3117.9,3117.0,0.00080232]
[1767980998922,7.41216587,3117.8,3117.0,0.00080232]
[1767980999089,1.06194713,3117.7,3117.0,0.00080232]
[1767981001003,6.41519116,3117.6,3117.0,0.00080232]
[1767981001320,0.00080232,3117.4,3116.4,0.00080216]
[1767981001528,0.00080232,3117.4,3116.4,3.2095529]
[1767981001701,0.00080232,3117.4,3117.3,0.001]
[1767981001902,0.00080232,3117.4,3116.4,0.97691095]
[1767981001903,0.001,3117.3,3116.4,0.97691095]
[1767981002606,0.001,3117.3,3116.6,0.97610879]
[1767981002833,4.27146351,3117.7,3117.1,0.98389809]
[1767981002834,0.002,3117.7,3117.1,0.98389809]
[1767981002995,0.0028016,3118.0,3117.2,0.98389809]
[1767981003199,0.0131337,3118.4,3117.8,0.98389809]
[1767981003398,3.21991315,3118.4,3117.8,0.98389809]
[1767981003596,3.86257072,3118.4,3117.8,0.98389809]
[1767981003839,7.06934882,3118.4,3117.8,0.98389809]
[1767981003998,7.06934882,3118.4,3117.6,0.00080168]
[1767981004318,7.06934882,3118.4,3117.6,0.98469977]
[1767981005932,7.06934882,3118.4,3117.6,0.00080168]
[1767981006103,0.70693488,3118.3,3117.6,0.00080168]
[1767981006630,0.95893488,3118.3,3117.6,0.98469977]
[1767981006801,0.00080168,3118.0,3117.3,0.98389809]
[1767981007835,0.00080168,3118.0,3117.0,0.98470049]
[1767981008009,0.0008024,3117.4,3116.7,0.98389809]
[1767981009498,0.0008024,3117.4,3116.4,0.98470025]
[1767981010031,0.252,3117.3,3116.4,0.98470025]
[1767981010537,0.252,3117.3,3116.5,0.98389809]
[1767981011231,6.41601436,3117.2,3116.5,0.98389809]
[1767981011433,0.66688168,3117.2,3116.5,0.98389809]
[1767981011635,0.0008024,3117.4,3116.6,0.98389809]
[1767981012207,0.00080168,3118.0,3117.3,0.98389809]
[1767981012208,3.2080113,3118.0,3117.3,0.98389809]
[1767981012408,0.00080168,3118.0,3117.3,0.98389809]
[1767981012907,3.20805232,3118.0,3117.3,0.98389809]
[1767981013244,0.00080168,3118.0,3117.3,4.19174759]
[1767981013410,0.00080168,3118.0,3117.3,4.191801]
[1767981013611,0.00080168,3118.0,3117.4,0.98389809]
[1767981014412,0.002,3117.7,3117.4,0.98389809]
[1767981014612,0.00080168,3118.0,3117.7,0.98389809]
[1767981015347,0.00280168,3118.0,3117.9,0.98389809]
[1767981015713,0.00280168,3118.0,3117.7,3.20749248]
[1767981015914,0.00280168,3118.0,3117.7,0.73990869]
[1767981016614,0.00280168,3118.0,3117.5,0.252]
[1767981016815,0.00280168,3118.0,3117.3,3.20789769]
[1767981017071,0.94089014,3118.0,3117.0,3.20894883]
[1767981017344,0.94089014,3118.0,3117.0,0.00080248]
[1767981017345,0.00280168,3118.0,3117.0,0.00080248]
[1767981018069,0.94089014,3118.0,3117.0,0.00080248]
[1767981019444,6.4145739,3117.9,3117.0,0.00080248]
[1767981019656,0.252,3117.8,3117.0,0.00080248]
[1767981019869,3.21001716,3118.0,3117.0,0.98470057]
[1767981020180,0.00280168,3118.0,3117.0,0.98470057]
[1767981020311,0.00280168,3118.0,3117.2,0.98389809]
[1767981021349,0.00280168,3118.0,3117.4,0.98389809]
[1767981021526,0.00280168,3118.0,3117.6,0.98389809]
[1767981023839,0.00280168,3118.0,3117.7,0.98389809]
[1767981024343,0.01601948,3119.2,3117.6,6.41516419]
[1767981024344,0.94008846,3119.3,3117.9,0.98389809]
[1767981024545,3.2062403,3119.0,3117.9,0.98389809]
[1767981024715,0.252,3119.1,3117.9,0.98389809]
[1767981024911,3.20609138,3119.1,3117.9,0.98389809]
[1767981025116,0.002,3119.3,3117.9,0.98389809]
[1767981025328,3.20611409,3119.1,3117.9,0.98389809]
[1767981025729,3.20595024,3119.2,3118.1,0.98389809]
[1767981026129,0.254,3119.3,3118.8,0.98389809]
[1767981026328,0.002,3119.3,3118.8,0.98389809]
[1767981027875,0.002,3119.3,3118.6,0.252]
[1767981028284,0.002,3119.3,3118.6,1.42823233]
[1767981028575,0.002,3119.3,3118.9,0.98389809]
[1767981028746,0.01601948,3119.8,3118.6,4.30433424]
[1767981028941,0.01601948,3119.8,3118.6,7.06647274]
[1767981029163,0.01601948,3119.8,3118.6,3.86]
[1767981029366,0.95410794,3119.8,3118.6,3.86]
[1767981029556,0.95410794,3119.8,3118.6,7.06653875]
[1767981029756,0.95410794,3119.8,3118.6,3.86]
[1767981029980,6.41107834,3119.6,3118.6,3.86]
[1767981030944,6.41107834,3119.6,3118.6,4.84389809]
[1767981031857,10.55470597,3119.6,3118.6,3.86]
[1767981032178,0.01601948,3119.5,3118.6,3.86]
[1767981032477,1.05707255,3119.4,3118.6,3.86]
[1767981033580,1.05707255,3119.4,3118.5,0.90937929]
[1767981033789,1.05707255,3119.4,3118.5,0.00080184]
[1767981033997,3.45784746,3119.3,3118.5,0.90937929]
[1767981034293,4.26286142,3119.4,3118.5,0.90937929]
[1767981034490,3.20578887,3119.4,3118.5,0.90937929]
[1767981035196,6.41046186,3119.9,3118.6,0.90857745]
[1767981035394,0.252,3119.7,3118.6,0.90857745]
[1767981035766,6.41046186,3119.9,3118.6,0.90857745]
[1767981035968,6.66246186,3119.9,3118.8,0.90857745]
[1767981036288,6.66246186,3119.9,3118.5,1.16137929]
[1767981036289,1.94841343,3119.8,3118.5,1.16137929]
[1767981036589,0.94394956,3119.7,3118.5,0.90937929]
[1767981036764,0.01601948,3119.6,3118.5,0.90937929]
[1767981037069,0.95996904,3119.6,3118.5,0.00080184]
[1767981037659,0.01601948,3119.4,3118.5,0.00080184]
[1767981037860,0.252,3119.3,3118.5,0.00080184]
[1767981038163,0.94394956,3119.1,3118.5,0.00080184]
[1767981038491,7.60772134,3119.3,3118.5,0.00080184]
[1767981038691,0.94394956,3119.2,3118.5,0.00080184]
[1767981039191,0.94394956,3119.2,3118.8,0.001]
[1767981039862,7.42454391,3119.3,3118.5,0.00080184]
[1767981040587,0.00080184,3118.9,3118.2,0.9043817]
[1767981041262,0.00080184,3118.9,3118.3,0.90857745]
[1767981041458,0.00080184,3118.9,3118.5,0.90857745]
[1767981042389,0.00080184,3118.9,3118.6,0.90857745]
[1767981044164,0.00080184,3118.9,3118.3,4.76857745]
[1767981044381,0.00080184,3118.9,3118.4,0.90857745]
[1767981045299,0.00080184,3118.9,3118.3,3.86]
[1767981045877,0.00080184,3118.9,3118.3,4.76857745]
[1767981047482,0.00080184,3118.9,3118.3,3.86]
[1767981047678,0.00080184,3118.9,3117.7,0.90857745]
[1767981047878,0.00080184,3118.9,3117.8,0.90857745]
[1767981048073,0.00080184,3118.9,3117.9,0.90857745]
[1767981048501,6.41331906,3118.9,3117.9,0.90857745]
[1767981050219,0.91371973,3118.8,3117.6,0.00080176]
[1767981050397,0.91371973,3118.6,3117.6,0.00080176]
[1767981050716,0.91371973,3118.6,3116.8,0.92954111]
[1767981050717,0.92973921,3118.4,3116.8,0.92954111]
[1767981051018,0.91371973,3117.9,3116.8,0.001]
[1767981051315,0.91371973,3117.7,3116.8,0.001]
[1767981051513,0.00080248,3117.4,3116.8,0.001]
[1767981052785,0.64161994,3117.3,3116.8,0.001]
[1767981053757,0.64161994,3117.3,3116.4,0.00080216]
[1767981054016,0.91371973,3117.2,3116.4,0.00080216]
[1767981054217,0.92973921,3117.2,3116.4,0.00080216]
[1767981054397,0.252,3117.1,3116.4,0.00080216]
[1767981054596,3.20821302,3117.0,3116.4,0.00080216]
[1767981054911,0.3460213,3116.9,3116.4,0.00080216]
[1767981056623,3.20841889,3116.8,3116.4,0.00080216]
[1767981056788,6.41683778,3116.8,3116.4,0.00080216]
[1767981056991,3.20841889,3116.8,3116.4,0.00080216]
[1767981057309,3.80636477,3116.9,3116.4,0.00080216]
[1767981057509,0.70145843,3116.8,3116.4,0.00080216]
[1767981057690,0.00080248,3117.4,3116.4,0.92934327]
[1767981057691,0.252,3117.1,3116.4,0.92934327]
[1767981057890,3.20862863,3117.4,3116.4,0.92934327]
[1767981058103,3.46062863,3117.4,3116.4,0.92934327]
[1767981058291,6.66845478,3117.4,3116.4,0.92934327]
[1767981058492,0.98762044,3117.3,3116.4,0.92934327]
[1767981058840,3.20809255,3117.2,3116.4,0.92934327]
[1767981059185,6.4161851,3117.2,3116.4,0.92934327]
[1767981059618,3.46009255,3117.2,3116.4,0.92934327]
[1767981059818,3.20809255,3117.2,3116.4,0.92934327]
[1767981060011,3.46009255,3117.2,3116.4,0.92934327]
[1767981060243,3.46009255,3117.2,3116.5,0.92854111]
[1767981060421,6.6681851,3117.2,3116.5,0.92854111]
[1767981060646,3.46009255,3117.2,3116.4,0.00080216]
[1767981060868,0.91371973,3114.8,3113.9,0.0008016]
[1767981060989,0.91371973,3114.8,3113.9,3.21220779]
[1767981061191,0.91371973,3114.8,3113.9,6.42356981]
[1767981061493,0.00080168,3114.9,3114.0,0.44460901]
[1767981061724,0.00080168,3114.9,3114.1,1.00795857]
[1767981062025,0.91371973,3115.6,3114.5,0.00080176]
[1767981062701,0.91371973,3115.6,3114.5,6.42237824]
[1767981062906,0.91371973,3115.6,3114.5,9.63316648]
[1767981063128,0.91371973,3115.6,3114.5,6.42237824]
[1767981063429,0.97373398,3115.5,3114.5,3.21159]
[1767981063614,0.97373398,3115.5,3114.5,6.42237824]
[1767981064609,0.97373398,3115.5,3114.5,0.00080176]
[1767981064811,0.97373398,3115.4,3114.5,0.00080176]
[1767981065139,0.97373398,3115.4,3114.5,0.34716938]
[1767981066060,0.97373398,3115.2,3114.5,0.00080176]
[1767981066940,0.97373398,3115.0,3114.5,0.00080176]
[1767981070607,0.0008016,3114.3,3113.9,9.8846027]
[1767981070845,0.00080176,3114.9,3113.9,9.88540438]
[1767981071144,0.97453574,3114.9,3114.1,6.42240132]
[1767981071502,0.97453574,3114.9,3114.1,9.63360198]
[1767981071707,0.97373398,3115.2,3114.5,0.00080184]
[1767981072619,0.97173398,3115.2,3114.5,0.00080184]
[1767981076446,0.97373398,3115.1,3114.5,0.00080184]
[1767981076906,0.97373398,3115.0,3114.5,0.00080184]
[1767981078415,0.97173398,3115.0,3114.5,0.00080184]
[1767981079263,0.97373398,3114.9,3114.5,0.00080184]
[1767981079960,0.97173398,3114.9,3114.5,0.00080184]
[1767981081230,0.96973398,3114.9,3114.5,0.00080184]
[1767981086568,0.97373398,3115.6,3114.5,0.00080184]
[1767981086769,1.22573398,3115.5,3114.5,0.00080184]
[1767981087066,0.97373398,3115.4,3114.5,0.00080184]
[1767981087367,0.98975346,3115.4,3113.9,0.00080168]
[1767981087541,0.97373398,3114.8,3113.9,3.21220859]
[1767981087865,0.97373398,3114.8,3113.9,6.4236155]
[1767981088072,0.97373398,3114.8,3114.0,0.66756155]
[1767981088659,0.97373398,3114.8,3114.1,3.21120066]
[1767981089167,0.97373398,3114.8,3114.1,6.42240132]
[1767981089668,0.97373398,3114.8,3114.1,3.21120066]
[1767981090168,0.97373398,3114.8,3114.1,6.42240132]
[1767981090467,0.97373398,3114.8,3114.2,0.70899629]
[1767981090865,0.97373398,3114.8,3114.3,3.21099444]
[1767981091069,0.00080184,3114.9,3114.3,6.42198888]
[1767981091845,0.00080184,3114.9,3114.3,6.67398888]
[1767981092054,0.97373398,3115.4,3114.5,0.00080192]
[1767981092864,0.97373398,3115.4,3114.5,6.4223784]
[1767981094041,0.97373398,3115.4,3114.5,9.63316664]